Cogmind - Beta 13 @@@ ROGUE MODE // 2024.03.10 @ 17:59:48 Player: rCartos Result: Destroyed by H-66 Slayer with Gauss Rifle Performance ------------- Evolutions (1) 500 Regions Visited (6) 1200 Robots Destroyed (26) 130 Value Destroyed (563) 563 Prototype IDs (4) 80 Alien Tech Used (0) 0 Bonus (600) 600 TOTAL SCORE: 3073 Bonus ------- Met Imprinter 300 Was Imprinted 300 Cogmind --------- Core Integrity 0/400 Matter 116/300 Energy 28/100 System Corruption 0% Temperature Cool (2) Movement Hovering (80) Location -6/Proximity Caves Parts ------- > --- POWER (1) -------- (None) > --- PROPULSION (3) --- Combat Airjet > --- UTILITY (3) ------ Transmission Jammer Makeshift Light Armor Plating > --- WEAPON (2) ------- Makeshift Laser > --- INVENTORY (5) ---- Improved Terrain Scanner Mobile Refinery Mk. CCLXVII Hacking Drone Bay (1/1) Peak State ------------ > --- POWER ------------ Light Deuterium Engine > --- PROPULSION ------- Wheel Combat Airjet Combat Airjet > --- UTILITY ---------- Large Storage Unit Hardened Medium Armor Plating Makeshift Light Armor Plating > --- WEAPON ----------- Heavy Riot Gun Bore Cannon > --- INVENTORY -------- Ion Engine Improved Terrain Scanner Transmission Jammer Improved Light Armor Plating Mobile Refinery Mk. CCLXVII Hacking Drone Bay Heavy EM Pulse Gun Improved EM Shotgun Makeshift Laser Barrage Gun Rocket Launcher Heavy Explosive Trap [Rating: 35] Favorites ----------- Power Light Deuterium Engine Engine Light Deuterium Engine Power Core Light Nuclear Core Propulsion Wheel Wheel Wheel Hover Unit Combat Airjet Flight Unit VTOL Module Utility Large Storage Unit Device Transmission Jammer Storage Large Storage Unit Hackware Hacking Suite Protection Makeshift Light Armor Plating Weapon EM Pulse Gun Energy Gun EM Pulse Gun Energy Cannon Beam Cannon Ballistic Cannon Bore Cannon Launcher Rocket Launcher Build | -11 -10 -10 -9 -9 -7 -6 ------- Run | Yrd Mat Min Mat Min Zio Pro Slots Evolved 2 | . . . 2 . . . Power . | . . . . . . . Propulsion 1 | . . . 1 . . . Utility 1 | . . . 1 . . . Weapon . | . . . . . . . Parts Attached 59 | 7 1 7 14 8 8 14 Power 5 | 1 . 1 . 1 . 2 Engine 4 | 1 . 1 . 1 . 1 Core 1 | . . . . . . 1 Reactor . | . . . . . . . Propulsion 15 | 2 . 1 3 6 . 3 Treads . | . . . . . . . Leg . | . . . . . . . Wheel 10 | 2 . 1 3 4 . . Hover 4 | . . . . 2 . 2 Flight 1 | . . . . . . 1 Utility 22 | 2 1 4 5 1 4 5 Device 7 | 1 . 1 2 . . 3 Storage 3 | 1 . 2 . . . . Processor . | . . . . . . . Hackware 1 | . 1 . . . . . Protection 11 | . . 1 3 1 4 2 Artifact . | . . . . . . . Weapon 17 | 2 . 1 6 . 4 4 Energy Gun 11 | 2 . 1 4 . 3 1 Energy Cannon 1 | . . . 1 . . . Ballistic Gun . | . . . . . . . Ballistic Cannon 4 | . . . . . 1 3 Launcher 1 | . . . 1 . . . Special Weapon . | . . . . . . . Impact Weapon . | . . . . . . . Slashing Weapon . | . . . . . . . Piercing Weapon . | . . . . . . . Special Melee Weapon . | . . . . . . . Unidentified Prototypes 4 | . . 1 1 . . 2 Parts Lost 17 | . . 4 5 . . 8 Power 3 | . . 1 . . . 2 Propulsion 7 | . . 1 3 . . 3 Utility 3 | . . 1 1 . . 1 Weapon 4 | . . 1 1 . . 2 Highest Loss Streak 6 | . . 4 5 . . 6 To Critical Strikes . | . . . . . . . Average Slot Usage (%) 89 | . 100 83 83 92 100 74 Engine 11 | . 14 13 11 11 11 9 Wheel 25 | . 28 26 20 25 33 2 Hover 2 | . . . . . . 18 Device 2 | . 14 1 . . . 9 Storage 9 | . 2 12 11 11 11 1 Protection 17 | . . 12 22 22 22 20 Energy Gun 13 | . 28 14 11 22 12 1 Ballistic Cannon 4 | . . . . . 9 10 Naked Turns . | . . . . . . . Heaviest Build 50 | 15 15 29 39 39 50 50 Greatest Support 30 | 26 26 20 30 30 30 30 Greatest Overweight (x) 4 | . . 2 3 3 1 4 Average Overweight (x) . | . . 1 2 1 1 . Largest Inventory Capacity 15 | 8 8 15 15 15 15 15 Average Capacity 12 | 7 5 14 15 15 15 6 Most Carried 15 | 5 5 10 13 15 15 15 Average Carried 8 | 1 4 3 10 12 14 5 Final Capacity 15 | 8 5 15 15 15 15 5 Final Carried 15 | 2 5 10 11 15 15 3 Class Distribution -------------------- 51% | Mutant 48% | Scavenger-Mutant Dominant Class ---------------- Mutant | -10/Materials Mutant | -10/Mines Mutant | -9/Materials Mutant | -9/Mines Scavenger-Mutant | -7/Zion Scavenger-Mutant | -6/Proximity Caves Resources | -11 -10 -10 -9 -9 -7 -6 ----------- Run | Yrd Mat Min Mat Min Zio Pro Matter Collected 865 | 109 74 140 213 90 40 199 Remotely . | . . . . . . . Salvage Created 899 | 30 89 156 232 319 . 73 Parts 51 | 2 13 13 9 6 . 8 Haulers Intercepted . | . . . . . . . Recyclers Shooed 2 | . 1 . 1 . . . Parts Field Recycled . | . . . . . . . Retrieved Matter . | . . . . . . . Parts Self-Destructed 10 | . . . . . . 10 Prevented . | . . . . . . . Kills | -11 -10 -10 -9 -9 -7 -6 ------- Run | Yrd Mat Min Mat Min Zio Pro Combat Hostiles Destroyed 15 | . 3 3 5 . . 4 Guns 6 | . 3 1 . . . 2 Cannons 5 | . . . 3 . . 2 AOE 4 | . . 2 2 . . . Classes Destroyed 8 | 1 3 1 2 1 . . Builder 2 | . . . 1 1 . . Tunneler 3 | 1 . 2 . . . . Recycler 2 | . . . . 2 . . Operator 2 | . 1 . 1 . . . Watcher 2 | . 1 . 1 . . . Swarmer 7 | . 3 . . . . 4 Grunt 5 | . . 3 2 . . . Sentry 3 | . . . 3 . . . Best Kill Streak 4 | 1 3 3 4 2 . 2 Combat Bots Only 3 | . 3 2 2 . . 2 Max Kills in Single Turn 3 | 1 1 3 2 1 . 1 Gunslinging . | . . . . . . . Exploded 1 | . . 1 1 . . . Melee . | . . . . . . . Uniques/NPCs Destroyed . | . . . . . . . Combat | -11 -10 -10 -9 -9 -7 -6 -------- Run | Yrd Mat Min Mat Min Zio Pro Hostile Shots Fired 185 | . 9 22 45 . . 109 Missed 44 | . 4 5 7 . . 28 Damage Taken 2219 | . 53 297 584 . . 1285 Core 503 | . 18 72 130 . . 283 Absorbed by Shields . | . . . . . . . Redirected to Shielding 31 | . . 4 27 . . . Core Remaining (%) 82 | 100 . 64 . . . . Volleys Fired 114 | 2 11 30 28 7 6 30 Largest 2 | 2 2 2 2 2 2 2 Hottest 207 | 90 90 90 100 90 207 117 Shots Fired 173 | 4 22 38 47 14 12 36 Gun 119 | 4 22 38 22 14 6 13 Cannon 49 | . . . 20 . 6 23 Launcher 5 | . . . 5 . . . Special . | . . . . . . . Kinetic 29 | . . . . . 6 23 Thermal 63 | 2 11 8 36 . 6 . Explosive 5 | . . . 5 . . . Electromagnetic 76 | 2 11 30 6 14 . 13 Robot Hit Streak 7 | 3 2 4 6 5 . 7 Robot Miss Streak 4 | 1 2 3 3 1 . 4 Penetration Max . | . . . . . . . Secondary Targets . | . . . . . . . Shots Hit Robots 84 | 3 8 13 31 8 . 21 Core Hits 47 | 1 5 9 16 6 . 10 Critical Kills . | . . . . . . . Critical Parts Destroyed 2 | . . . . . . 2 Critical Strikes 6 | . . 1 . 1 . 4 Destroy 2 | . . . . . . 2 Blast 2 | . . . . . . 2 Corrupt 2 | . . 1 . 1 . . Melee Attacks . | . . . . . . . Impact . | . . . . . . . Slashing . | . . . . . . . Piercing . | . . . . . . . Sneak Attacks . | . . . . . . . Combat Hostiles . | . . . . . . . Follow-up Attacks . | . . . . . . . Damage Inflicted 1872 | 38 130 364 810 124 . 406 Guns 797 | 38 111 205 207 124 . 112 Cannons 520 | . . . 226 . . 294 Explosions 536 | . . 159 377 . . . Melee . | . . . . . . . Ramming 19 | . 19 . . . . . Kinetic 294 | . . . . . . 294 Thermal 633 | 25 37 233 338 . . . Explosive 377 | . . . 377 . . . Electromagnetic 549 | 13 74 131 95 124 . 112 Impact . | . . . . . . . Slashing . | . . . . . . . Piercing . | . . . . . . . Highest Corruption . | . . . . . . . Average Corruption . | . . . . . . . Corruption Purged . | . . . . . . . Corruption Blocked . | . . . . . . . Overload Shots 6 | . . . . . 6 . Effects 1 | . . . . . 1 . Energy Bleed 1 | . . . . . 1 . Overflow Damage 43 | . . 28 13 . . 2 Projectiles 7 | . . . 5 . . 2 Explosions 36 | . . 28 8 . . . Melee . | . . . . . . . Knockbacks 7 | . . . . . . 7 Impact . | . . . . . . . Kinetic 7 | . . . . . . 7 Secondary . | . . . . . . . Self-Inflicted Damage 72 | . 9 63 . . . . Shots 2 | . . 2 . . . . Rammed 2 | . 2 . . . . . Targets Rammed 2 | . 2 . . . . . Kicked . | . . . . . . . Crushed . | . . . . . . . Highest Temperature 520 | 60 100 333 520 90 513 459 Average Temperature 171 | 33 43 149 220 38 251 160 Received Heat Transfer 327 | . . 153 174 . . . Effects 25 | . . . 10 . 10 5 Shutdowns 7 | . . . 4 . 2 1 Energy Bleed 2 | . . . 1 . 1 . Interference 4 | . . . . . 2 2 Matter Decay 1 | . . . . . 1 . Short Circuit 3 | . . . 2 . . 1 Damage (minor) 3 | . . . 2 . 1 . Damage (major) 4 | . . . . . 3 1 Damage (core) 1 | . . . 1 . . . Siege Activations . | . . . . . . . Robots Corrupted . | . . . . . . . Combat Hostiles . | . . . . . . . Parts Fried 2 | . . . 1 . . 1 Impact Corruptions . | . . . . . . . Robots Melted . | . . . . . . . Combat Hostiles . | . . . . . . . Parts Melted 2 | . . 1 1 . . . Heat Transferred 1288 | 74 111 372 731 . . . Parts Sabotaged . | . . . . . . . Parts Stolen . | . . . . . . . Parts Stripped . | . . . . . . . Power Chain Reactions 2 | . . 2 . . . . Alert | -11 -10 -10 -9 -9 -7 -6 ------- Run | Yrd Mat Min Mat Min Zio Pro Peak Influence 220 | 5 115 73 220 105 . . Initial 85 | . 3 44 19 85 . . Average 45 | . 35 23 126 98 . . Maximum Alert Level 1 | . . . 1 . . . Low Security (%) 96 | 100 100 100 77 100 . . Level 1 3 | . . . 22 . . . Level 2 . | . . . . . . . Level 3 . | . . . . . . . Level 4 . | . . . . . . . Level 5 . | . . . . . . . High Security . | . . . . . . . Max Security . | . . . . . . . Squads Dispatched 3 | . 1 . 2 . . . Investigation 1 | . . . 1 . . . Extermination . | . . . . . . . Reinforcement 2 | . 1 . 1 . . . Assault . | . . . . . . . Garrison . | . . . . . . . Intercept . | . . . . . . . Searches Triggered . | . . . . . . . Construction Impeded . | . . . . . . . Haulers Reinforced . | . . . . . . . Active Scanning Responses . | . . . . . . . Cargo Convoy Interrupts . | . . . . . . . Stealth | -11 -10 -10 -9 -9 -7 -6 --------- Run | Yrd Mat Min Mat Min Zio Pro Distress Signals 3 | . . 2 . . . 1 Communications Jammed 4 | . . . . . . 4 Distress Signals . | . . . . . . . Times Spotted 36 | . 6 4 10 . . 16 Peak Tracking Total 5 | . 3 2 4 . . 5 Tactical Retreats 3 | . . 1 . . . 2 Traps | -11 -10 -10 -9 -9 -7 -6 ------- Run | Yrd Mat Min Mat Min Zio Pro Traps Triggered . | . . . . . . . Indirectly . | . . . . . . . Trap Hack Attempts . | . . . . . . . Triggered . | . . . . . . . Disarmed 3 | . . . 3 . . . Reprogrammed . | . . . . . . . Reused . | . . . . . . . Traps Extracted . | . . . . . . . Installed . | . . . . . . . Triggered 1 | . . . . . . 1 Most Traps Carried 2 | . . . . 2 2 1 Machines | -11 -10 -10 -9 -9 -7 -6 ---------- Run | Yrd Mat Min Mat Min Zio Pro Machines Disabled . | . . . . . . . Max in Single Turn . | . . . . . . . Machines Repaired . | . . . . . . . Machines Dismantled . | . . . . . . . Machines Sabotaged . | . . . . . . . Overloaded Fab Kills . | . . . . . . . Hacking | -11 -10 -10 -9 -9 -7 -6 --------- Run | Yrd Mat Min Mat Min Zio Pro Machines Accessed 4 | . 1 1 2 . . . Terminals 3 | . 1 . 2 . . . Fabricators . | . . . . . . . Repair Stations . | . . . . . . . Recycling Units . | . . . . . . . Scanalyzers . | . . . . . . . Garrison Access . | . . . . . . . Total Hacks 8 | . 1 1 6 . . . Successful 3 | . . 1 2 . . . Failed 5 | . 1 . 4 . . . Catastrophic 2 | . 1 . 1 . . . Database Lockouts . | . . . . . . . Manual 2 | . . . 2 . . . Terminals 7 | . 1 . 6 . . . Fabricators . | . . . . . . . Repair Stations . | . . . . . . . Recycling Units . | . . . . . . . Scanalyzers . | . . . . . . . Garrison Access . | . . . . . . . Terminal Hacks 3 | . . 1 2 . . . Open Door 1 | . . 1 . . . . Alert Level 1 | . . . 1 . . . Disarm Traps 1 | . . . 1 . . . Fabricator Hacks . | . . . . . . . Repair Station Hacks . | . . . . . . . Recycling Unit Hacks . | . . . . . . . Scanalyzer . | . . . . . . . Garrison Access Hacks . | . . . . . . . Unauthorized Hacks . | . . . . . . . Terminals . | . . . . . . . Fabricators . | . . . . . . . Repair Stations . | . . . . . . . Recycling Units . | . . . . . . . Scanalyzers . | . . . . . . . Garrison Access . | . . . . . . . Data Cores Recovered 1 | . 1 . . . . . Used . | . . . . . . . Hacking Detections 2 | . . . 2 . . . Full Trace Events 1 | . . . 1 . . . Feedback Events . | . . . . . . . Feedback Blocked . | . . . . . . . Robot Schematics Acquired 3 | . . . . . 3 . Robots Built . | . . . . . . . Authchips . | . . . . . . . Time . | . . . . . . . Total Robot Build Rating . | . . . . . . . Part Schematics Acquired 15 | . . . . . 15 . Parts Built . | . . . . . . . Authchips . | . . . . . . . Time . | . . . . . . . Total Part Build Rating . | . . . . . . . Parts Repaired . | . . . . . . . Time . | . . . . . . . Parts Recycled . | . . . . . . . Recycled Matter . | . . . . . . . Retrieved Matter . | . . . . . . . Retrieved Components . | . . . . . . . Parts Scanalyzed . | . . . . . . . Part Schematics Acquired . | . . . . . . . Parts Damaged . | . . . . . . . Bothacking | -11 -10 -10 -9 -9 -7 -6 ------------ Run | Yrd Mat Min Mat Min Zio Pro Used RIF Installer . | . . . . . . . Robots Hacked . | . . . . . . . Non-combat . | . . . . . . . Combat . | . . . . . . . Robot Hacks Applied . | . . . . . . . Relay Couplers Released . | . . . . . . . Fabnet Peak Effective % . | . . . . . . . Robots Rewired . | . . . . . . . Allies Hacked . | . . . . . . . Hacks Repelled . | . . . . . . . Allies | -11 -10 -10 -9 -9 -7 -6 -------- Run | Yrd Mat Min Mat Min Zio Pro Total Allies 4 | . . . . . 4 . Largest Group 4 | . . . . . 4 . Highest-Rated Group 154 | . . . . . 154 . Highest-Rated Ally 40 | . . . . . 40 . Total Orders . | . . . . . . . Ally Attacks . | . . . . . . . Total Damage . | . . . . . . . Kills . | . . . . . . . Allies Corrupted . | . . . . . . . Allies Melted . | . . . . . . . Intel | -11 -10 -10 -9 -9 -7 -6 ------- Run | Yrd Mat Min Mat Min Zio Pro Robot Analysis Total . | . . . . . . . Derelict Logs Recovered 4 | . . . . 1 2 1 Drone Launches 16 | . . 16 . . . . Drone Recoveries . | . . . . . . . Exploration | -11 -10 -10 -9 -9 -7 -6 ------------- Run | Yrd Mat Min Mat Min Zio Pro Turns Passed 4380 | 64 267 1401 322 206 1587 533 Spaces Moved 2951 | 52 249 199 194 154 1548 555 Core 12 | 12 . . . . . . Treads . | . . . . . . . Legs . | . . . . . . . Wheels 2406 | 40 249 199 194 154 1548 22 Hover 533 | . . . . . . 533 Flight . | . . . . . . . Fastest Speed 50 | 50 90 80 95 95 95 77 Average Speed 93 | 80 90 104 113 101 95 78 Slowest Speed 140 | 90 90 110 125 125 95 140 Overloaded Moves . | . . . . . . . Propulsion Burnouts . | . . . . . . . Robots Hopped . | . . . . . . . Cave-ins Triggered . | . . . . . . . Exploration Rate (%) 37 | 4 34 28 22 33 91 49 Regions Visited 6 Branch Regions 4 Pre-discovered Areas 2 | . . . . . 2 . Known Exits Taken 1 | . . . . . 1 . Unknown Exits Taken 5 | 1 1 1 1 1 . . Scrap Searched 6 | . . 1 . . 3 2 Spaces Dug . | . . . . . . . Terrain Destroyed 73 | . . 10 56 . . 7 Melee . | . . . . . . . Projectile 7 | . . . . . . 7 AOE 66 | . . 10 56 . . . Terrain Rammed . | . . . . . . . Walls Destroyed . | . . . . . . . Machines Disabled . | . . . . . . . Actions | -11 -10 -10 -9 -9 -7 -6 --------- Run | Yrd Mat Min Mat Min Zio Pro Total 4411 | 69 271 1357 248 189 1655 622 Wait 1170 | . . 1100 . . 70 . Move 2945 | 51 248 198 193 153 1547 555 Hop . | . . . . . . . Pick Up 70 | 9 6 15 9 11 12 8 Fast Attach 2 | . . . . . . 2 Attach 38 | 7 . 7 9 2 1 12 Detach 8 | . . 1 1 . . 6 Swap 19 | . 1 . 5 6 7 . Drop 38 | . 3 6 3 5 12 9 Fire 114 | 2 11 30 28 7 6 30 Melee . | . . . . . . . Ram 2 | . 2 . . . . . Kick . | . . . . . . . Crush . | . . . . . . . Escape Stasis . | . . . . . . . Rewire 5 | . . . . 5 . . Trap . | . . . . . . . Miscellaneous . | . . . . . . . Route ------- -11/Scrapyard -10/Materials -10/Mines -9/Materials -9/Mines (discovered 2 exits: [*Mat] / *Zio) -7/Zion -6/Proximity Caves History --------- Turn | Location | Event 23 | -11/Scrapyard | Discovered new exit (range 16) 65 | -11/Scrapyard | Entered Materials 273 | -10/Materials | Discovered new exit (range 9) 314 | -10/Materials | Build established: Mutant 332 | -10/Materials | Entered Mines 386 | -10/Mines | Lost 4 parts (1p1n1u1w) 398 | -10/Mines | Found the Drone Emporium 405 | -10/Mines | Found Prototype Device 409 | -10/Mines | Identified Decoy Drone Bay 482 | -10/Mines | Lost 16 allies 511 | -10/Mines | Excavation squad dispatched 511 | -10/Mines | A large section of the Mines collapsed 761 | -10/Mines | Excavation squad dispatched 1011 | -10/Mines | Excavation squad dispatched 1261 | -10/Mines | Excavation squad dispatched 1511 | -10/Mines | Excavation squad dispatched 1710 | -10/Mines | Discovered new exit (range 6) 1717 | -10/Mines | Received a Rocket Launcher from a helpful Derelict 1733 | -10/Mines | Entered Materials 1733 | -9/Materials | Evolved 2 slots: Propulsion x1, Utility x1 1914 | -9/Materials | Lost 5 parts (3n1u1w) 2035 | -9/Materials | Discovered new exit (range 16) 2055 | -9/Materials | Entered Mines 2056 | -9/Mines | Assembled infested the area 2105 | -9/Mines | Met 8R-AWN 2187 | -9/Mines | Learned Materials emergency access door positions 2195 | -9/Mines | Found a hidden stash of uninstalled traps 2254 | -9/Mines | A Derelict revealed a hidden shortcut to a safe place 2254 | -9/Mines | Discovered new exit (range 8) 2261 | -9/Mines | Entered Zion 2459 | -7/Zion | Build established: Scavenger-Mutant 2473 | -7/Zion | Learned Factory stockpile data 2537 | -7/Zion | Identified exit to Proximity Caves 2779 | -7/Zion | Given the Hacking Drone Bay 2781 | -7/Zion | Found Prototype Device 2890 | -7/Zion | Given A8's code to call for help 2942 | -7/Zion | Learned location of Data Miner (-6) 3311 | -7/Zion | Imprinted 3313 | -7/Zion | Declared Zion's savior 3794 | -7/Zion | Found Prototype Device 3848 | -7/Zion | Entered Proximity Caves 3851 | -6/Proximity Caves | Spotter reported a threat 3852 | -6/Proximity Caves | Spotter reported a threat 3876 | -6/Proximity Caves | Core integrity fell below 50% 3904 | -6/Proximity Caves | Spotter reported a threat 3915 | -6/Proximity Caves | Identified Hacking Drone Bay 3918 | -6/Proximity Caves | Identified Mobile Refinery Mk. CCLXVII 4029 | -6/Proximity Caves | Spotter reported a threat 4067 | -6/Proximity Caves | Spotter reported a threat 4226 | -6/Proximity Caves | Learned Factory terminal intel 4246 | -6/Proximity Caves | Spotter reported a threat 4277 | -6/Proximity Caves | Spotter reported a threat 4326 | -6/Proximity Caves | Core integrity fell below 20% 4348 | -6/Proximity Caves | Spotter reported a threat 4381 | -6/Proximity Caves | Destroyed by H-66 Slayer with Gauss Rifle Last Messages --------------- HV Slug penetrates H-66 Slayer. H-66 Slayer knocked back. HV Slug penetrates H-66 Slayer. Penetrated by Slug. HV Slug penetrates H-66 Slayer. H-66 Slayer suffers critical hit (Destroy). Destroyed Flexi-carbon Leg. H-66 Slayer knocked back. Imp. Light Armor Plating destroyed. Acquired 2 matter. Penetrated by Slug. Acquired 24 matter. N-01 Spotter is scanning... Slug penetrates Wall. ALERT: Unidentified potential threat approaching Complex 0b10. Bore Cannon destroyed. Penetrated by Slug. Cmb. Airjet destroyed. Penetrated by Slug. Map ----- +----------------------------------------------------+ | ?????????????????????????????????????????????????? | | ?????????????????????????????????????????????????? | | ?????????????????????????????????????????????????? | | ?????????????????????????????????????????????????? | | ?????????????????????????????????????????????????? | | ?????????????????????????????????????????????????? | | ?????????????????????????????????????????????????? | | ?????????????????????????????????????????????????? | | ?????????????????????????????????????????????????? | | ?????????????######????????????????###??###??????? | | ????????????## ##??????###??##### ### #??????? | | ????????????# #??????# "### #??????? | | ????????????# ##???????# % ##?????? | | ????????????# ##??????## % ##????? | | ?????????????# #??????#" [ % #????? | | ???????????### ##?????##% ## #????? | | ??????????## #######" %#### % ##????? | | ????????### = ##??# ##?????? | | ????????# ### #???# ##??????? | | ????????# ### ###### #???# ##???????? | | ????????# ###?# ### #????# #???# #????????? | | ????##### ##### ########????# #???####????????? | | ????# h ####?????? ???????????????? | | ????# ####??? ??????????????? | | ????# #####+##### ##? ?????????????? | | ????# #""" "??# @ #? " ##????????????? | | ????# #" """# ## #? "%###?????????????? | | ????# #"T """# #### #???????????????? | | ????# #" ""?# ##?? #???????????????? | | ????# #" ?# #??? ???????????????? | | ????# #" ??# #??? ####??????????????? | | ????# #" ??# ??? #?????????????????? | | ????# #" ??# ?? !% #?????????????????? | | ????# #" ?# ?? #?????????????????? | | ????# ##+##+##### # ? ?????????????????? | | ????# ##? ????????????????? | | ????# #?# ### ???????????????? | | ????##### ### ###?## ##??###???????????????? | | ????????# ###### #????? #??????????????????????? | | ???????## #### ## #? ????????????????###????? | | ???????# # #?? ??????????????### ##???? | | ???????# # ##?? ##???????????## #???? | | ???????## #### # # ??????????### #????? | | ????????# ##### # # ????????## #????? | | ????????### ######## #????? | | ?????????## #?# #????? | | ?????????# ### ##??# #????? | | ?????????# # #?????##?# # #### ### ##???? | | ?????????# ##???????????????# #?# ### ##??? | | ???????### # # #???????????????# #?# ### #??? | +----------------------------------------------------+ Best States ------------- Heat Dissipation 28 Energy Generation 14 Energy Capacity 250 Matter Stores 300 Matter Capacity 300 Sight Range 16 Terrain Scan Range 16 Terrain Scan Density 10 Jamming Range 12 Armor Coverage 375 Core Shielding 20 Evasion (%) 50 Offensive Hacking 10 Item Schematics ----------------- Greatsword | -7/Zion | Archive Recoil Nullifier | -7/Zion | Archive Mak. Hacking Suite | -7/Zion | Archive Imp. Core Shielding | -7/Zion | Archive Arm. Huge Wheel | -7/Zion | Archive Hvy. Machine Gun | -7/Zion | Archive Imp. Medium Treads | -7/Zion | Archive Imp. Field Recycling Unit | -7/Zion | Archive Lgt. Fission Core | -7/Zion | Archive Mak. Light Armor Plating | -7/Zion | Archive Proton Cannon | -7/Zion | Archive Med. Treads | -7/Zion | Archive Field Propulsion Drive | -7/Zion | Archive Plasma Cannon | -7/Zion | Archive Adv. Terrain Scanner | -7/Zion | Archive Robot Schematics ------------------ A-02 Transporter | -7/Zion | Archive L-41 Fighter | -7/Zion | Archive G-47 Trooper | -7/Zion | Archive Fabricated ------------ Nothing Alien Tech Used ----------------- None Achievements -------------- Release The Drones! Robot Respite The One Challenges ------------ None Game ------ Seed NullBlastArachnoskeleton Manual? 0 Play Time 00:51:20 Cumulative 10.4 hours Start 2024.03.10 @ 16:25:30 End 2024.03.10 @ 17:59:48 Sessions 1 Manual Loads 0 Difficulty Rogue Special Mode None Game No. 24 Rogue 24 Adventurer 0 Explorer 0 Win Type - Total 0 Types 0/0/0/0/0/0/0/0/0 Lore% 16 Gallery% 16 Achievement% 12 Wizard Run 0 Options --------- Layout 1 ASCII 0 Keyboard 0 Movement Arrows Keybinds 0 Fullscreen 1 Font 16/Terminus Map View 25x20 Zoom Use 97% Tactical HUD 0 Map Filters NONE Filters NONE Steam 1 RUN: 353bf412-f187-49f8-a985-0861d28f8205